bitfinex-derivatives/quotes_SOLF0:USTF0_20250425
["timestamp","ask_amount","ask_price","bid_price","bid_amount"]
[1745621370896,30.1903,151.16,151.14,13.94242032]
[1745621371300,30.1903,151.16,151.14,7.33152032]
[1745621371598,6.6105,151.15,151.13,13.94262032]
[1745621372200,30.1903,151.16,151.14,6.6109]
[1745621373101,30.1903,151.16,151.14,13.94242032]
[1745621375400,30.1903,151.16,151.14,7.33152032]
[1745621376101,30.1903,151.16,151.14,13.94222032]
[1745621379804,6.6103,151.16,151.14,13.94222032]
[1745621383208,6.6103,151.16,151.14,7.33152032]
[1745621383907,6.6103,151.16,151.09,2.0859]
[1745621383908,23.56,151.19,151.15,7.33152032]
[1745621384310,23.56,151.19,151.16,7.33152032]
[1745621384511,6.6093,151.18,151.16,13.94132032]
[1745621384901,23.56,151.19,151.16,13.94132032]
[1745621384902,23.56,151.19,151.16,7.33152032]
[1745621385307,23.56,151.19,151.17,7.33152032]
[1745621386010,30.1689,151.19,151.17,13.94092032]
[1745621388010,30.1689,151.19,151.17,7.33152032]
[1745621388912,30.1689,151.19,151.17,13.94102032]
[1745621389616,6.6092,151.18,151.17,7.33152032]
[1745621397816,7.33152032,151.18,151.13,7.33152032]
[1745621398017,7.33152032,151.17,151.13,7.33152032]
[1745621398316,6.6109,151.14,151.13,7.33152032]
[1745621399819,6.6109,151.14,151.12,7.33152032]
[1745621400023,6.6113,151.13,151.12,7.33152032]
[1745621400428,23.56,151.15,151.11,7.33152032]
[1745621400619,6.6122,151.12,151.11,7.33152032]
[1745621402424,6.6115,151.13,151.11,7.33152032]
[1745621402824,30.1707,151.15,151.11,7.33152032]
[1745621403026,30.1707,151.15,151.13,7.33152032]
[1745621403624,23.56,151.15,151.13,7.33152032]
[1745621403919,6.6102,151.16,151.13,7.33152032]
[1745621404123,6.6098,151.17,151.15,7.33152032]
[1745621404723,23.56,151.18,151.15,7.33152032]
[1745621407225,6.6096,151.17,151.15,7.33152032]
[1745621407421,23.56,151.18,151.15,7.33152032]
[1745621408327,23.56,151.18,151.16,6.6098]
[1745621409025,30.1692,151.18,151.17,7.33152032]
[1745621409725,6.6096,151.17,151.15,6.6102]
[1745621409928,6.6096,151.17,151.16,7.33152032]
[1745621414427,6.6096,151.17,151.15,13.94192032]
[1745621415730,30.1694,151.18,151.16,13.94152032]
[1745621416331,23.56,151.18,151.16,13.94152032]
[1745621417833,30.87152032,151.21,151.16,13.94152032]
[1745621419134,6.6092,151.18,151.16,13.94152032]
[1745621419834,6.6092,151.18,151.16,7.33152032]
[1745621420035,6.6096,151.17,151.16,7.33152032]
[1745621420235,6.6096,151.17,151.15,7.33152032]
[1745621420429,6.6094,151.18,151.16,7.33152032]
[1745621420929,7.33152032,151.2,151.16,7.33152032]
[1745621421835,6.6096,151.17,151.16,7.33152032]
[1745621424735,7.33152032,151.18,151.14,7.33152032]
[1745621425035,7.33152032,151.17,151.13,7.33152032]
[1745621425231,6.6108,151.15,151.13,7.33152032]
[1745621425535,6.6108,151.15,151.14,7.33152032]
[1745621426435,6.6103,151.16,151.14,7.33152032]
[1745621426735,23.54,151.19,151.15,7.33152032]
[1745621426931,23.54,151.19,151.17,7.33152032]
[1745621427436,6.6092,151.18,151.17,7.33152032]
[1745621438746,23.54,151.19,151.15,7.33152032]
[1745621439349,6.6098,151.17,151.15,13.94192032]
[1745621439853,6.6098,151.17,151.15,6.6104]
[1745621440049,6.6098,151.17,151.15,13.94192032]
[1745621440753,6.6098,151.17,151.15,7.33152032]
[1745621441356,7.33152032,151.17,151.12,7.33152032]
[1745621441553,7.33152032,151.16,151.11,7.33152032]
[1745621441753,6.6112,151.14,151.11,7.33152032]
[1745621441953,6.6112,151.14,151.11,13.94342032]
[1745621443354,6.6112,151.14,151.12,7.33152032]
[1745621443554,6.6112,151.14,151.12,13.94322032]
[1745621445455,6.6107,151.15,151.12,13.94322032]
[1745621445656,7.33152032,151.18,151.14,7.33152032]
[1745621445856,30.87152032,151.19,151.14,7.33152032]
[1745621446156,6.6101,151.16,151.14,7.33152032]
[1745621447255,6.6101,151.16,151.14,13.94222032]
[1745621447751,6.6098,151.17,151.15,7.33152032]
[1745621447952,6.6098,151.17,151.15,13.94202032]
[1745621449955,6.6098,151.17,151.14,13.94212032]
[1745621450756,6.6098,151.17,151.15,6.6105]
[1745621452059,6.6098,151.17,151.14,13.94222032]
[1745621454956,7.33152032,151.17,151.09,23.54]
[1745621455253,7.33152032,151.17,151.12,7.33152032]
[1745621455758,6.6107,151.15,151.13,6.6113]
[1745621456057,6.6107,151.15,151.12,7.33152032]
[1745621456457,6.6107,151.15,151.13,6.6113]
[1745621456758,6.6107,151.15,151.12,7.33152032]
[1745621457558,6.6107,151.15,151.12,13.94292032]
[1745621458759,6.6109,151.14,151.12,13.94292032]
[1745621458959,7.33152032,151.17,151.12,13.94292032]
[1745621459860,6.6108,151.15,151.12,13.94292032]
[1745621460258,7.33152032,151.17,151.12,13.94292032]
[1745621460861,6.611,151.14,151.12,13.94292032]
[1745621461061,6.611,151.14,151.1,7.33152032]
[1745621461761,6.6114,151.13,151.11,6.6119]
[1745621463062,6.6118,151.12,151.1,13.94392032]
[1745621464262,6.6115,151.13,151.11,6.6122]
[1745621464861,6.6115,151.13,151.1,13.94392032]
[1745621465060,6.6118,151.12,151.1,13.94392032]
[1745621465562,7.33152032,151.15,151.11,6.6122]
[1745621465961,6.6116,151.13,151.11,6.6122]
[1745621468064,6.6116,151.13,151.1,13.94402032]
[1745621468562,6.6116,151.13,151.1,7.33152032]
[1745621468763,6.6107,151.15,151.12,7.33152032]
[1745621469163,6.6107,151.15,151.13,6.6112]
[1745621470060,7.33152032,151.17,151.12,7.33152032]
[1745621470061,6.6109,151.14,151.12,13.94312032]
[1745621470265,7.33152032,151.17,151.12,7.33152032]
[1745621471364,6.6107,151.15,151.13,6.6113]
[1745621472869,7.33152032,151.17,151.12,13.94312032]
[1745621474271,6.6109,151.15,151.12,13.94312032]
[1745621474471,6.6109,151.15,151.13,6.6113]
[1745621474772,6.6109,151.15,151.12,7.33152032]
[1745621474972,7.33152032,151.17,151.12,7.33152032]
[1745621476074,6.6113,151.14,151.12,7.33152032]
[1745621477073,6.6113,151.13,151.12,7.33152032]
[1745621479880,6.6122,151.11,151.1,7.33152032]
[1745621480175,30.87152032,151.15,151.1,7.33152032]
[1745621480576,6.612,151.12,151.1,13.94422032]
[1745621485179,6.612,151.12,151.1,6.6127]
[1745621489381,7.33152032,151.14,151.09,7.33152032]
[1745621489581,7.33152032,151.12,151.08,3.94]
[1745621489984,7.33152032,151.12,151.06,7.33152032]
[1745621490485,7.33152032,151.12,151.07,6.6137]
[1745621490886,6.613,151.1,151.07,6.6137]
[1745621491087,7.33152032,151.11,151.08,6.6135]
[1745621491685,13.94412032,151.11,151.08,6.6135]
[1745621491984,7.33152032,151.11,151.08,6.6135]
[1745621493287,6.6127,151.1,151.08,6.6135]
[1745621502005,6.6127,151.1,151.07,6.6137]
[1745621502294,6.6132,151.09,151.07,6.6137]
[1745621502494,30.85152032,151.11,151.07,6.6137]
[1745621502694,6.613,151.1,151.07,6.6137]
[1745621503102,6.613,151.1,151.08,6.6135]
[1745621505702,6.6131,151.09,151.07,6.6137]
[1745621506505,6.6129,151.1,151.08,6.6135]
[1745621507201,7.33152032,151.1,150.96,1.15195551]
[1745621507406,7.33152032,151.04,150.98,7.33152032]
[1745621507606,30.85152032,151.04,150.98,7.33152032]
[1745621507807,30.85152032,151.04,150.99,6.6172]
[1745621507808,6.616,151.03,150.99,6.6172]
[1745621508002,6.616,151.03,151.0,7.33152032]
[1745621508503,6.6162,151.02,150.99,7.33152032]
[1745621509806,6.6162,151.02,150.99,13.94892032]
[1745621510310,6.6166,151.01,150.99,7.33152032]
[1745621511010,6.6166,151.01,150.99,13.94882032]
[1745621512908,6.6166,151.01,150.99,7.33152032]
[1745621513209,30.85152032,151.04,150.99,7.33152032]
[1745621513805,6.6168,151.01,150.99,13.94892032]
[1745621514108,6.6168,151.01,150.99,7.33152032]
[1745621515610,6.6168,151.01,150.99,13.94892032]
[1745621516610,6.6164,151.02,150.99,13.94892032]
[1745621517511,6.6167,151.01,150.99,13.94892032]
[1745621518009,6.6167,151.01,150.99,7.33152032]
[1745621518806,6.6167,151.01,150.99,13.94892032]
[1745621519110,6.6163,151.02,150.99,13.94892032]
[1745621519310,7.33152032,151.03,150.99,7.33152032]
[1745621519513,6.6169,151.01,150.98,13.94922032]
[1745621519712,6.6169,151.01,150.98,7.33152032]
[1745621520212,6.6169,151.01,150.99,6.6172]
[1745621520908,13.2218,151.15,151.0,30.87152032]
[1745621521117,86.07972955,151.14,151.09,7.33152032]
[1745621521413,6.612,151.12,151.09,7.33152032]
[1745621522715,6.6124,151.11,151.09,7.33152032]
[1745621523215,6.6124,151.11,151.07,13.94532032]
[1745621523614,7.33152032,151.11,151.06,7.33152032]
[1745621524011,7.33152032,151.09,151.04,7.33152032]
[1745621524218,7.33152032,151.07,151.03,7.33152032]
[1745621524618,6.6149,151.05,151.03,7.33152032]
[1745621525420,7.33152032,151.07,151.01,7.33152032]
[1745621525717,6.6157,151.04,151.01,7.33152032]
[1745621527219,6.6158,151.03,151.01,7.33152032]
[1745621528016,6.6158,151.03,151.01,13.94802032]
[1745621528216,6.6158,151.03,151.01,7.33152032]
[1745621528418,6.6162,151.02,150.99,13.94872032]
[1745621529317,6.6159,151.03,151.01,7.33152032]
[1745621530017,6.6162,151.02,151.01,7.33152032]
[1745621530521,6.6162,151.02,151.0,6.6169]
[1745621532023,6.6167,151.01,150.99,13.94882032]
[1745621532716,6.6167,151.01,150.99,7.33152032]
[1745621533621,23.54,151.05,150.99,7.33152032]
[1745621533915,6.6155,151.04,151.03,7.33152032]
[1745621534122,23.54,151.05,151.03,7.33152032]
[1745621534724,30.1551,151.05,151.03,7.33152032]
[1745621535017,23.54,151.05,151.03,13.94712032]
[1745621535214,23.54,151.05,151.03,7.33152032]
[1745621535923,23.54,151.05,151.04,6.6153]
[1745621536123,30.1337,151.08,151.03,7.33152032]
[1745621536324,30.1337,151.08,151.05,7.33152032]
[1745621536623,30.1337,151.08,151.05,13.94602032]
[1745621538226,6.614,151.07,151.05,6.6145]
[1745621539027,30.1338,151.08,151.05,6.6145]
[1745621540227,6.614,151.07,151.05,6.6145]
[1745621542330,30.1337,151.08,151.05,6.6145]
[1745621542929,6.6141,151.07,151.05,6.6145]
[1745621543533,6.6148,151.05,151.02,7.33152032]
[1745621543727,6.6148,151.05,151.01,7.33152032]
[1745621544030,23.52,151.08,151.03,7.33152032]
[1745621544229,30.1338,151.08,151.05,13.94612032]
[1745621544529,23.52,151.08,151.05,13.94612032]
[1745621545533,6.6142,151.07,151.05,13.94612032]
[1745621547129,6.6144,151.06,151.05,7.33152032]
[1745621549837,6.6141,151.07,151.05,13.94632032]
[1745621550235,6.6141,151.07,151.05,7.33152032]
[1745621551134,6.6141,151.07,151.05,13.94632032]
[1745621551937,6.6141,151.07,151.05,7.33152032]
[1745621552931,6.6141,151.07,151.05,13.94622032]
[1745621553137,6.6141,151.07,151.05,7.33152032]
[1745621553836,6.6141,151.07,151.05,13.94612032]
[1745621556437,30.1338,151.08,151.05,13.94612032]
[1745621556634,23.52,151.08,151.06,6.6141]
[1745621556932,23.52,151.08,151.07,7.33152032]
[1745621557338,23.52,151.11,151.07,13.94552032]
[1745621557539,6.6132,151.09,151.07,13.94552032]
[1745621558140,6.6132,151.09,151.08,7.33152032]
[1745621559041,6.6129,151.1,151.08,13.94502032]
[1745621560348,6.6131,151.09,151.08,7.33152032]
[1745621560540,6.6131,151.09,151.07,13.94522032]
[1745621562247,6.6128,151.1,151.08,6.6135]
[1745621563949,6.6131,151.09,151.07,13.94532032]
[1745621564249,6.6131,151.09,151.08,7.33152032]
[1745621564549,6.6131,151.09,151.07,13.94532032]
[1745621568655,30.85152032,151.11,151.06,7.33152032]
[1745621569859,6.6143,151.07,151.06,7.33152032]
[1745621573166,6.6132,151.09,151.06,13.94562032]
[1745621573362,23.52,151.11,151.08,7.33152032]
[1745621573864,6.6129,151.1,151.08,7.33152032]
[1745621574065,23.52,151.11,151.08,7.33152032]
[1745621574266,23.52,151.11,151.09,7.33152032]
[1745621574465,6.6127,151.1,151.09,7.33152032]
[1745621575064,6.6134,151.09,151.08,7.33152032]
[1745621577171,6.6129,151.1,151.08,7.33152032]
[1745621579172,6.6129,151.1,151.08,13.94502032]
[1745621579870,6.6129,151.1,151.08,7.33152032]
[1745621580073,7.33152032,151.14,151.08,7.33152032]
[1745621580272,7.33152032,151.14,151.03,2.0384]
[1745621580273,23.52,151.13,151.1,7.33152032]
[1745621580572,6.6118,151.12,151.1,7.33152032]
[1745621581274,6.6122,151.11,151.1,7.33152032]
[1745621581572,23.52,151.13,151.09,13.94462032]
[1745621581878,6.6122,151.11,151.09,13.94462032]
[1745621582172,6.6122,151.11,151.09,7.33152032]
[1745621582373,6.6127,151.1,151.09,7.33152032]
[1745621582672,23.52,151.13,151.09,7.33152032]
[1745621583176,6.6125,151.11,151.09,7.33152032]
[1745621583475,23.52,151.13,151.09,7.33152032]
[1745621584576,6.6119,151.12,151.09,13.94452032]
[1745621585075,6.6123,151.11,151.09,13.94452032]
[1745621586578,7.33152032,151.11,151.07,7.33152032]
[1745621588284,6.6135,151.08,151.07,7.33152032]
[1745621588482,30.85152032,151.13,151.07,7.33152032]
[1745621588682,30.85152032,151.13,151.09,7.33152032]
[1745621588884,23.52,151.13,151.09,7.33152032]
[1745621589182,6.6127,151.1,151.09,7.33152032]
[1745621590185,6.6131,151.09,151.08,7.33152032]
[1745621591084,6.6129,151.1,151.08,7.33152032]
[1745621591885,6.6123,151.11,151.08,7.33152032]
[1745621592182,23.52,151.13,151.1,7.33152032]
[1745621592385,23.52,151.13,151.09,7.33152032]
[1745621592583,6.6126,151.11,151.09,7.33152032]
[1745621592980,6.6126,151.11,151.09,13.94442032]
[1745621593284,6.612,151.12,151.09,13.94442032]
[1745621593484,6.612,151.12,151.09,7.33152032]
[1745621593685,30.1315,151.13,151.1,6.6124]
[1745621593984,30.1315,151.13,151.09,7.33152032]
[1745621594183,23.52,151.13,151.1,6.6126]
[1745621594986,6.6118,151.12,151.1,6.6126]
[1745621595187,23.52,151.13,151.1,6.6126]
[1745621595487,23.52,151.13,151.1,13.94412032]
[1745621596089,30.1315,151.13,151.11,6.6121]
[1745621596290,30.1315,151.13,151.1,7.33152032]
[1745621596588,23.52,151.13,151.1,7.33152032]
[1745621596787,23.52,151.13,151.1,13.94402032]
[1745621597390,6.6118,151.12,151.1,13.94402032]
[1745621598891,30.1316,151.13,151.1,13.94402032]
[1745621599593,6.6119,151.12,151.1,6.6125]
[1745621599793,23.52,151.13,151.1,7.33152032]
[1745621600188,6.612,151.12,151.1,7.33152032]
[1745621600388,6.612,151.12,151.07,2.0339]
[1745621600588,6.612,151.12,151.1,7.33152032]
[1745621602786,30.1316,151.13,151.1,13.94412032]
[1745621602986,30.1316,151.13,151.11,7.33152032]
[1745621603287,23.52,151.13,151.11,7.33152032]
[1745621603592,6.6118,151.12,151.11,7.33152032]
[1745621604388,6.6122,151.11,151.1,7.33152032]
[1745621607493,6.6127,151.1,151.08,6.6133]
[1745621607692,6.6127,151.1,151.09,7.33152032]
[1745621608488,6.6124,151.11,151.09,7.33152032]
[1745621610192,6.612,151.12,151.09,13.94452032]
[1745621612795,23.52,151.13,151.09,7.33152032]
[1745621613494,6.6124,151.11,151.09,7.33152032]
[1745621614093,6.6121,151.12,151.09,13.94452032]
[1745621614395,23.52,151.13,151.09,13.94452032]
[1745621614597,23.52,151.13,151.09,7.33152032]
[1745621615196,6.6124,151.11,151.09,7.33152032]
[1745621615498,23.52,151.13,151.09,7.33152032]
[1745621615688,6.612,151.12,151.09,13.94432032]
[1745621617393,23.52,151.13,151.09,13.94432032]
[1745621617597,30.1314,151.13,151.11,7.33152032]
[1745621618797,23.52,151.13,151.11,7.33152032]
[1745621619395,30.1317,151.13,151.11,7.33152032]
[1745621621701,30.1317,151.13,151.11,13.94372032]
[1745621621997,6.6117,151.13,151.11,13.94372032]
[1745621623199,6.6117,151.13,151.11,7.33152032]
[1745621624699,6.6117,151.13,151.11,13.94372032]
[1745621627700,6.6111,151.14,151.11,13.94372032]
[1745621630104,6.6111,151.14,151.12,6.6117]
[1745621631312,6.6111,151.14,151.11,13.94352032]
[1745621633811,6.6111,151.14,151.12,6.6118]
[1745621634215,6.6111,151.14,151.11,13.94352032]
[1745621634513,6.6114,151.13,151.11,13.94352032]
[1745621637021,6.6114,151.13,151.11,6.612]
[1745621637219,6.6118,151.12,151.1,13.94402032]
[1745621637420,7.33152032,151.15,151.1,13.94402032]
[1745621637823,6.6111,151.14,151.11,6.6122]
[1745621638222,7.33152032,151.15,151.1,13.94392032]
[1745621638423,6.6114,151.13,151.1,13.94392032]
[1745621640121,6.6114,151.13,151.11,6.6122]
[1745621640425,6.6114,151.13,151.1,7.33152032]
[1745621640621,6.6114,151.13,151.1,13.94392032]
[1745621644529,6.6114,151.13,151.11,6.6122]
[1745621646531,6.6114,151.13,151.1,13.94412032]
[1745621648933,6.6114,151.13,151.11,6.6121]
[1745621649135,30.83152032,151.16,151.1,7.33152032]
[1745621649433,30.83152032,151.16,151.1,13.94382032]
[1745621650032,6.6116,151.13,151.1,13.94382032]
[1745621656340,6.6116,151.13,151.1,6.6123]
[1745621656640,6.6116,151.13,151.1,13.94382032]
[1745621656831,6.6116,151.13,151.11,6.6122]
[1745621660339,6.6111,151.14,151.11,6.6122]
[1745621662837,7.33152032,151.14,151.08,9.35602032]
[1745621663033,7.33152032,151.14,151.08,7.33152032]
[1745621663237,7.33152032,151.12,151.07,9.36542032]
[1745621663437,6.6131,151.09,151.07,13.94532032]
[1745621664241,6.6136,151.08,151.06,13.94562032]
[1745621664641,7.33152032,151.1,151.06,7.33152032]
[1745621664843,6.6135,151.09,151.06,13.94582032]
[1745621665541,6.6135,151.08,151.06,13.94582032]
[1745621667143,7.33152032,151.09,151.04,6.6151]
[1745621667339,7.33152032,151.09,151.04,13.94662032]
[1745621667640,23.48,151.08,151.04,13.94662032]
[1745621667941,6.6144,151.06,151.04,13.94662032]
[1745621668944,6.6142,151.07,151.05,7.33152032]
[1745621671548,6.6144,151.06,151.05,7.33152032]
[1745621672348,6.6144,151.06,151.04,13.94662032]
[1745621672850,6.6144,151.06,151.04,7.33152032]
[1745621673043,6.6144,151.06,151.03,13.94712032]
[1745621674149,6.6144,151.06,151.04,7.33152032]
[1745621674848,6.6144,151.06,151.04,13.94682032]
[1745621676747,6.6144,151.06,151.04,7.33152032]
[1745621677850,6.6148,151.05,151.04,7.33152032]
[1745621678052,6.6148,151.05,151.03,13.94702032]
[1745621679954,6.6153,151.04,151.02,18.00922032]
[1745621680159,7.33152032,151.05,151.02,7.33152032]
[1745621680555,6.6155,151.04,151.01,13.94782032]
[1745621681855,7.33152032,151.07,151.03,7.33152032]
[1745621682061,30.81152032,151.08,151.04,7.33152032]
[1745621682359,30.81152032,151.08,151.03,7.33152032]
[1745621682759,6.615,151.05,151.03,7.33152032]
[1745621684562,6.615,151.05,151.03,13.94722032]
[1745621685564,6.6153,151.04,151.03,7.33152032]
[1745621686059,6.6153,151.04,151.02,6.6159]
[1745621686060,6.6153,151.04,151.02,13.94742032]
[1745621687465,6.6153,151.04,151.02,7.33152032]
[1745621691066,6.6157,151.03,151.02,7.33152032]
[1745621693266,6.6155,151.04,151.02,7.33152032]
[1745621696480,6.6155,151.04,151.01,13.94792032]
[1745621699081,6.6155,151.04,151.02,6.6161]
[1745621700981,6.6151,151.05,151.02,6.6161]
[1745621701281,6.6151,151.05,151.02,13.94762032]
[1745621701783,6.6153,151.04,151.02,13.94762032]
[1745621703287,6.6151,151.05,151.02,13.94762032]
[1745621705485,6.6151,151.05,151.03,6.6156]
[1745621705783,6.6151,151.05,151.02,7.33152032]
[1745621706084,6.6151,151.05,151.02,13.94742032]
[1745621707982,7.33152032,151.07,151.02,7.33152032]
[1745621708186,7.33152032,151.06,151.02,7.33152032]
[1745621708487,7.33152032,151.06,151.01,7.33152032]
[1745621708690,7.33152032,151.04,150.99,7.33152032]
[1745621709080,30.83152032,151.04,150.99,7.33152032]
[1745621710290,6.6169,151.02,151.0,6.6173]
[1745621710692,30.83152032,151.04,151.0,6.6173]
[1745621710888,7.33152032,151.03,151.0,6.6173]
[1745621711790,6.6169,151.02,151.0,6.6173]
[1745621711991,30.83152032,151.04,151.0,6.6173]
[1745621712690,6.6165,151.03,151.01,6.6172]
[1745621713288,6.6171,151.02,151.0,7.33152032]
[1745621713496,6.6171,151.02,150.99,7.33152032]
[1745621714293,6.6171,151.02,151.0,6.6177]
[1745621714495,6.6171,151.02,150.99,7.33152032]
[1745621715294,6.6171,151.02,150.99,13.94942032]
[1745621716695,6.6166,151.03,151.0,13.94922032]
[1745621716894,6.6166,151.03,151.01,7.33152032]
[1745621717195,6.6166,151.03,151.01,13.94872032]
[1745621720795,30.83152032,151.04,151.0,7.33152032]
[1745621720995,7.33152032,151.03,150.99,7.33152032]
[1745621721296,6.6171,151.02,151.0,6.6177]
[1745621722096,30.1162,151.04,151.01,7.33152032]
[1745621722400,30.81152032,151.07,151.03,7.33152032]
[1745621722697,6.6152,151.06,151.03,7.33152032]
[1745621723294,6.6155,151.05,151.03,13.94762032]
[1745621723798,30.81152032,151.07,151.03,7.33152032]
[1745621723990,23.48,151.07,151.05,7.33152032]
[1745621724193,23.48,151.07,151.04,7.33152032]
[1745621724398,23.48,151.07,151.03,7.33152032]
[1745621725199,23.48,151.07,151.03,13.94762032]
[1745621725200,6.6155,151.05,151.03,13.94762032]
[1745621725400,23.48,151.07,151.03,13.94762032]
[1745621726102,6.6153,151.06,151.03,13.94762032]
[1745621727001,6.6157,151.05,151.03,13.94762032]
[1745621727803,6.6157,151.05,151.03,7.33152032]
[1745621729415,23.48,151.07,151.03,13.94762032]
[1745621729908,6.6157,151.05,151.03,13.94762032]
[1745621731611,6.6153,151.06,151.03,13.94762032]
[1745621731812,23.48,151.07,151.03,7.33152032]
[1745621732514,30.0949,151.07,151.04,6.6155]
[1745621732810,30.0949,151.07,151.03,7.33152032]
[1745621733012,30.0949,151.07,151.04,6.6157]
[1745621734515,30.0949,151.07,151.05,6.6155]
[1745621734714,23.48,151.07,151.05,6.6155]
[1745621735113,23.48,151.07,151.05,13.94702032]
[1745621736716,30.0947,151.07,151.05,13.94702032]
[1745621740821,23.48,151.07,151.05,13.94702032]
[1745621742220,6.6144,151.08,151.05,13.94702032]
[1745621743021,6.6147,151.07,151.05,13.94702032]
[1745621743728,6.6144,151.08,151.06,7.33152032]
[1745621744524,6.6146,151.07,151.06,7.33152032]
[1745621745623,6.6144,151.08,151.06,7.33152032]
[1745621745823,30.81152032,151.1,151.06,7.33152032]
[1745621746326,6.6144,151.08,151.06,7.33152032]
[1745621747026,6.6144,151.08,151.06,13.94652032]
[1745621748021,6.6139,151.09,151.07,6.6146]
[1745621749526,6.6139,151.09,151.07,13.94612032]
[1745621751729,6.6139,151.09,151.07,7.33152032]
[1745621751924,6.6142,151.08,151.07,7.33152032]
[1745621752223,6.6142,151.08,151.06,7.33152032]
[1745621753532,6.6142,151.08,151.06,13.94652032]
[1745621760227,6.6142,151.08,151.06,7.33152032]
[1745621760433,6.6146,151.07,151.06,7.33152032]
[1745621760630,23.48,151.1,151.06,7.33152032]
[1745621760831,6.6144,151.08,151.06,13.94642032]
[1745621762034,6.6144,151.08,151.06,7.33152032]
[1745621763536,6.6146,151.07,151.06,7.33152032]
[1745621764236,7.33152032,151.09,150.98,1.8896]
[1745621764431,7.33152032,151.07,151.02,7.33152032]
[1745621765339,6.6163,151.04,151.02,7.33152032]
[1745621765531,7.33152032,151.07,151.02,7.33152032]
[1745621766041,6.6164,151.03,151.02,7.33152032]
[1745621775446,6.616,151.04,151.02,7.33152032]
[1745621777443,6.616,151.04,151.02,13.94822032]
[1745621781646,7.33152032,151.07,151.02,13.94822032]
[1745621782044,6.6159,151.05,151.02,13.94822032]
[1745621783343,6.6159,151.05,151.02,6.6167]
[1745621783648,6.6159,151.05,151.03,7.33152032]
[1745621787246,6.6159,151.04,151.03,7.33152032]
[1745621788248,7.33152032,151.05,150.97,6.6186]
[1745621788550,7.33152032,151.03,150.97,13.95012032]
[1745621788746,23.46,151.02,150.97,7.33152032]
[1745621789150,6.6179,151.0,150.97,7.33152032]
[1745621789349,23.46,151.02,150.99,7.33152032]
[1745621789549,23.46,151.05,151.01,7.33152032]
[1745621789849,6.6171,151.02,151.01,7.33152032]
[1745621790450,23.46,151.05,151.01,7.33152032]
[1745621790451,6.6166,151.03,151.01,7.33152032]
[1745621790651,23.46,151.05,151.01,7.33152032]
[1745621791050,6.6167,151.03,151.01,7.33152032]
[1745621791349,23.46,151.05,151.01,7.33152032]
[1745621792149,6.6166,151.03,151.01,7.33152032]
[1745621793852,6.6162,151.04,151.01,7.33152032]
[1745621794453,6.6162,151.04,151.01,13.94872032]
[1745621794951,6.6162,151.04,151.01,7.33152032]
[1745621795554,6.6162,151.04,151.01,13.94872032]
[1745621795852,30.0757,151.05,151.03,7.33152032]
[1745621797252,23.46,151.05,151.02,7.33152032]
[1745621798053,6.6164,151.03,151.02,7.33152032]
[1745621802752,6.617,151.02,151.0,7.33152032]
[1745621804758,23.46,151.05,151.0,7.33152032]
[1745621804958,23.46,151.05,151.02,7.33152032]
[1745621805560,6.6159,151.04,151.02,7.33152032]
[1745621805856,23.46,151.05,151.02,7.33152032]
[1745621806161,6.6164,151.03,151.02,7.33152032]
[1745621807958,6.6169,151.02,151.0,13.94892032]
[1745621810359,6.6166,151.03,151.0,13.94892032]
[1745621811565,6.6166,151.03,151.01,6.6172]
[1745621813066,6.6161,151.04,151.01,6.6172]
[1745621813764,6.6164,151.03,151.01,6.6172]
[1745621824872,6.6162,151.04,151.02,6.6167]
[1745621825478,6.6162,151.04,151.01,6.617]
[1745621826173,6.6165,151.03,151.01,6.617]
[1745621829685,6.6162,151.04,151.01,6.617]
[1745621829984,23.46,151.06,151.01,6.617]
[1745621830586,6.6163,151.04,151.01,6.617]
[1745621830785,6.6163,151.04,151.02,6.6167]
[1745621830985,6.6163,151.04,151.0,7.33152032]
[1745621831686,6.6163,151.04,151.01,6.617]
[1745621832384,6.6165,151.03,151.01,6.617]
[1745621834189,6.6165,151.03,151.0,13.94902032]
[1745621834996,7.33152032,151.05,151.0,7.33152032]
[1745621835287,7.33152032,151.03,150.98,7.33152032]
[1745621835492,23.44,151.02,150.98,7.33152032]
[1745621835791,6.6181,151.0,150.97,12.4024]